{"text_format":"3","workbook":"xlsx","n_sheets":6,"sheets":["Inizio","Dashboard","Spese e entrate","Report budget","Elenchi dati","Tabella pivot Categoria"],"not_rendered":{"charts":3,"defined_names":23,"pivot_tables":2},"read":"whole","date_system":"1900"}

{"sheet":"Inizio","index":0,"n_rows":8,"n_cols":2,"rows_kept":8}
[null,"Informazioni sul modello"]
[null,"Usa questo modello per creare un budget domestico bimensile."]
[null,"Il foglio di lavoro Dashboard contiene i grafici per i totali mensili e annuali e una tabella per le entrate e le spese quindicinali."]
[null,"Immetti le categorie nel foglio di lavoro Elenchi dati e i valori nel foglio di lavoro Entrate e Spese."]
[null,"Aggiorna la tabella pivot nel foglio di lavoro Report bilancio."]
[null,"Nota:"]
[null,"Nella colonna A di tutti i fogli di lavoro sono disponibili altre istruzioni. Questo testo è stato nascosto intenzionalmente. Per rimuovere il testo, seleziona la colonna A, quindi scegli ELIMINA. "]
[null,"Per altre informazioni sulla tabella, premi MAIUSC e quindi F10 in una tabella, seleziona l'opzione TABELLA, infine seleziona TESTO ALTERNATIVO. Per le tabelle pivot, premi MAIUSC e quindi F10 in una tabella, seleziona OPZIONI TABELLA PIVOT, infine seleziona la scheda TESTO ALTERNATIVO."]

{"sheet":"Dashboard","index":1,"n_rows":12,"n_cols":15,"rows_kept":12,"merged":[[0,1,0,13],[1,2,1,7]]}
["Crea una dashboard per i totali mensili e annuali e le entrate e le uscite quindicinali in questo foglio di lavoro. Nelle celle di questa colonna sono disponibili istruzioni utili per l'uso di questo foglio di lavoro. Il titolo della cartella di lavoro si trova nella cella a destra e il titolo del foglio di lavoro nella cella O1.","Budget domestico bimensile",{"$nulls":12},"DASHBOARD"]
["Seleziona il dispositivo di scorrimento nella cella C2 per cambiare il mese nella cella a destra, e per cambiare l'anno nella cella I2 seleziona il dispositivo di scorrimento nella cella J2.",{"$f":"CHOOSE(NumeroMese,\"GENNAIO\",\"FEBBRAIO\",\"MARZO\",\"APRILE\",\"MAGGIO\",\"GIUGNO\",\"LUGLIO\",\"AGOSTO\",\"SETTEMBRE\",\"OTTOBRE\",\"NOVEMBRE\",\"DICEMBRE\")","v":"DICEMBRE"},12,{"$nulls":5},{"$f":"YEAR(TODAY())","v":2022}]
["L'etichetta Totali mensili si trova nella cella a destra e l'etichetta Totali annuali nella cella I3.","TOTALI MENSILI",{"$nulls":6},"TOTALI ANNUALI"]
["Il grafico a barre che confronta i totali delle Entrate mensili con i totali delle Spese mensili si trova nella cella C4, e il grafico a barre che compara i totali delle Entrate annuali con i totali della Spesa annuale si trova nella cella J4. L’istruzione successiva si trova nella cella A8.","ENTRATE",null,{"$f":"TotaleSpeseMensili","v":{"v":0,"d":"€ 0"}},{"$nulls":4},"ENTRATE",null,null,{"$f":"SpeseAnnualiTotali","v":{"v":10742,"d":"€ 10,742"}}]
[null,"SPESE",null,{"$f":"TotaleEntrateMensili","v":{"v":0,"d":"€ 0"}},{"$nulls":4},"SPESE",null,null,{"$f":"EntrateAnnualiTotali","v":{"v":13200,"d":"€ 13,200"}}]
[]
[]
["La tabella del dashboard che inizia nella cella a destra viene aggiornata automaticamente.","Categoria","GENNAIO","FEBBRAIO","MARZO","APRILE","MAGGIO","GIUGNO","LUGLIO","AGOSTO","SETTEMBRE","OTTOBRE","NOVEMBRE","DICEMBRE","Sparkline"]
[null,"Entrate 1-15",{"$f":"SUMIFS(Entrate[IMPORTO],Entrate[DATA],\"<=\"&DtMetà,Entrate[DATA],\">=\"&DtInizio)","v":{"v":0,"d":"€ 0.00"}},{"$f":"SUMIFS(Entrate[IMPORTO],Entrate[DATA],\"<=\"&DtMetà,Entrate[DATA],\">=\"&DtInizio)","v":{"v":0,"d":"€ 0.00"}},{"$f":"SUMIFS(Entrate[IMPORTO],Entrate[DATA],\"<=\"&DtMetà,Entrate[DATA],\">=\"&DtInizio)","v":{"v":1300,"d":"€ 1,300.00"}},{"$f":"SUMIFS(Entrate[IMPORTO],Entrate[DATA],\"<=\"&DtMetà,Entrate[DATA],\">=\"&DtInizio)","v":{"v":2600,"d":"€ 2,600.00"}},{"$f":"SUMIFS(Entrate[IMPORTO],Entrate[DATA],\"<=\"&DtMetà,Entrate[DATA],\">=\"&DtInizio)","v":{"v":2600,"d":"€ 2,600.00"}},{"$f":"SUMIFS(Entrate[IMPORTO],Entrate[DATA],\"<=\"&DtMetà,Entrate[DATA],\">=\"&DtInizio)","v":{"v":0,"d":"€ 0.00"}},{"$f":"SUMIFS(Entrate[IMPORTO],Entrate[DATA],\"<=\"&DtMetà,Entrate[DATA],\">=\"&DtInizio)","v":{"v":0,"d":"€ 0.00"}},{"$f":"SUMIFS(Entrate[IMPORTO],Entrate[DATA],\"<=\"&DtMetà,Entrate[DATA],\">=\"&DtInizio)","v":{"v":0,"d":"€ 0.00"}},{"$f":"SUMIFS(Entrate[IMPORTO],Entrate[DATA],\"<=\"&DtMetà,Entrate[DATA],\">=\"&DtInizio)","v":{"v":0,"d":"€ 0.00"}},{"$f":"SUMIFS(Entrate[IMPORTO],Entrate[DATA],\"<=\"&DtMetà,Entrate[DATA],\">=\"&DtInizio)","v":{"v":0,"d":"€ 0.00"}},{"$f":"SUMIFS(Entrate[IMPORTO],Entrate[DATA],\"<=\"&DtMetà,Entrate[DATA],\">=\"&DtInizio)","v":{"v":0,"d":"€ 0.00"}},{"$f":"SUMIFS(Entrate[IMPORTO],Entrate[DATA],\"<=\"&DtMetà,Entrate[DATA],\">=\"&DtInizio)","v":{"v":0,"d":"€ 0.00"}}]
[null,"Entrate 16-FM",{"$f":"SUMIFS(Entrate[IMPORTO],Entrate[DATA],\"<=\"&DtFine,Entrate[DATA],\">=\"&DtMetà+1)","v":{"v":0,"d":"€ 0.00"}},{"$f":"SUMIFS(Entrate[IMPORTO],Entrate[DATA],\"<=\"&DtFine,Entrate[DATA],\">=\"&DtMetà+1)","v":{"v":0,"d":"€ 0.00"}},{"$f":"SUMIFS(Entrate[IMPORTO],Entrate[DATA],\"<=\"&DtFine,Entrate[DATA],\">=\"&DtMetà+1)","v":{"v":3100,"d":"€ 3,100.00"}},{"$f":"SUMIFS(Entrate[IMPORTO],Entrate[DATA],\"<=\"&DtFine,Entrate[DATA],\">=\"&DtMetà+1)","v":{"v":3100,"d":"€ 3,100.00"}},{"$f":"SUMIFS(Entrate[IMPORTO],Entrate[DATA],\"<=\"&DtFine,Entrate[DATA],\">=\"&DtMetà+1)","v":{"v":500,"d":"€ 500.00"}},{"$f":"SUMIFS(Entrate[IMPORTO],Entrate[DATA],\"<=\"&DtFine,Entrate[DATA],\">=\"&DtMetà+1)","v":{"v":0,"d":"€ 0.00"}},{"$f":"SUMIFS(Entrate[IMPORTO],Entrate[DATA],\"<=\"&DtFine,Entrate[DATA],\">=\"&DtMetà+1)","v":{"v":0,"d":"€ 0.00"}},{"$f":"SUMIFS(Entrate[IMPORTO],Entrate[DATA],\"<=\"&DtFine,Entrate[DATA],\">=\"&DtMetà+1)","v":{"v":0,"d":"€ 0.00"}},{"$f":"SUMIFS(Entrate[IMPORTO],Entrate[DATA],\"<=\"&DtFine,Entrate[DATA],\">=\"&DtMetà+1)","v":{"v":0,"d":"€ 0.00"}},{"$f":"SUMIFS(Entrate[IMPORTO],Entrate[DATA],\"<=\"&DtFine,Entrate[DATA],\">=\"&DtMetà+1)","v":{"v":0,"d":"€ 0.00"}},{"$f":"SUMIFS(Entrate[IMPORTO],Entrate[DATA],\"<=\"&DtFine,Entrate[DATA],\">=\"&DtMetà+1)","v":{"v":0,"d":"€ 0.00"}},{"$f":"SUMIFS(Entrate[IMPORTO],Entrate[DATA],\"<=\"&DtFine,Entrate[DATA],\">=\"&DtMetà+1)","v":{"v":0,"d":"€ 0.00"}}]
[null,"Spese 1-15",{"$f":"SUMIFS(Spese[IMPORTO],Spese[DATA],\"<=\"&DtMetà+1,Spese[DATA],\">=\"&DtInizio)","v":{"v":0,"d":"€ 0.00"}},{"$f":"SUMIFS(Spese[IMPORTO],Spese[DATA],\"<=\"&DtMetà+1,Spese[DATA],\">=\"&DtInizio)","v":{"v":0,"d":"€ 0.00"}},{"$f":"SUMIFS(Spese[IMPORTO],Spese[DATA],\"<=\"&DtMetà+1,Spese[DATA],\">=\"&DtInizio)","v":{"v":1225,"d":"€ 1,225.00"}},{"$f":"SUMIFS(Spese[IMPORTO],Spese[DATA],\"<=\"&DtMetà+1,Spese[DATA],\">=\"&DtInizio)","v":{"v":5150,"d":"€ 5,150.00"}},{"$f":"SUMIFS(Spese[IMPORTO],Spese[DATA],\"<=\"&DtMetà+1,Spese[DATA],\">=\"&DtInizio)","v":{"v":2792,"d":"€ 2,792.00"}},{"$f":"SUMIFS(Spese[IMPORTO],Spese[DATA],\"<=\"&DtMetà+1,Spese[DATA],\">=\"&DtInizio)","v":{"v":0,"d":"€ 0.00"}},{"$f":"SUMIFS(Spese[IMPORTO],Spese[DATA],\"<=\"&DtMetà+1,Spese[DATA],\">=\"&DtInizio)","v":{"v":0,"d":"€ 0.00"}},{"$f":"SUMIFS(Spese[IMPORTO],Spese[DATA],\"<=\"&DtMetà+1,Spese[DATA],\">=\"&DtInizio)","v":{"v":0,"d":"€ 0.00"}},{"$f":"SUMIFS(Spese[IMPORTO],Spese[DATA],\"<=\"&DtMetà+1,Spese[DATA],\">=\"&DtInizio)","v":{"v":0,"d":"€ 0.00"}},{"$f":"SUMIFS(Spese[IMPORTO],Spese[DATA],\"<=\"&DtMetà+1,Spese[DATA],\">=\"&DtInizio)","v":{"v":0,"d":"€ 0.00"}},{"$f":"SUMIFS(Spese[IMPORTO],Spese[DATA],\"<=\"&DtMetà+1,Spese[DATA],\">=\"&DtInizio)","v":{"v":0,"d":"€ 0.00"}},{"$f":"SUMIFS(Spese[IMPORTO],Spese[DATA],\"<=\"&DtMetà+1,Spese[DATA],\">=\"&DtInizio)","v":{"v":0,"d":"€ 0.00"}}]
[null,"Spese 16-FM",{"$f":"SUMIFS(Spese[IMPORTO],Spese[DATA],\"<=\"&DtFine,Spese[DATA],\">=\"&DtMetà+1)","v":{"v":0,"d":"€ 0.00"}},{"$f":"SUMIFS(Spese[IMPORTO],Spese[DATA],\"<=\"&DtFine,Spese[DATA],\">=\"&DtMetà+1)","v":{"v":0,"d":"€ 0.00"}},{"$f":"SUMIFS(Spese[IMPORTO],Spese[DATA],\"<=\"&DtFine,Spese[DATA],\">=\"&DtMetà+1)","v":{"v":200,"d":"€ 200.00"}},{"$f":"SUMIFS(Spese[IMPORTO],Spese[DATA],\"<=\"&DtFine,Spese[DATA],\">=\"&DtMetà+1)","v":{"v":875,"d":"€ 875.00"}},{"$f":"SUMIFS(Spese[IMPORTO],Spese[DATA],\"<=\"&DtFine,Spese[DATA],\">=\"&DtMetà+1)","v":{"v":500,"d":"€ 500.00"}},{"$f":"SUMIFS(Spese[IMPORTO],Spese[DATA],\"<=\"&DtFine,Spese[DATA],\">=\"&DtMetà+1)","v":{"v":0,"d":"€ 0.00"}},{"$f":"SUMIFS(Spese[IMPORTO],Spese[DATA],\"<=\"&DtFine,Spese[DATA],\">=\"&DtMetà+1)","v":{"v":0,"d":"€ 0.00"}},{"$f":"SUMIFS(Spese[IMPORTO],Spese[DATA],\"<=\"&DtFine,Spese[DATA],\">=\"&DtMetà+1)","v":{"v":0,"d":"€ 0.00"}},{"$f":"SUMIFS(Spese[IMPORTO],Spese[DATA],\"<=\"&DtFine,Spese[DATA],\">=\"&DtMetà+1)","v":{"v":0,"d":"€ 0.00"}},{"$f":"SUMIFS(Spese[IMPORTO],Spese[DATA],\"<=\"&DtFine,Spese[DATA],\">=\"&DtMetà+1)","v":{"v":0,"d":"€ 0.00"}},{"$f":"SUMIFS(Spese[IMPORTO],Spese[DATA],\"<=\"&DtFine,Spese[DATA],\">=\"&DtMetà+1)","v":{"v":0,"d":"€ 0.00"}},{"$f":"SUMIFS(Spese[IMPORTO],Spese[DATA],\"<=\"&DtFine,Spese[DATA],\">=\"&DtMetà+1)","v":{"v":0,"d":"€ 0.00"}}]

{"sheet":"Spese e entrate","index":2,"n_rows":36,"n_cols":9,"rows_kept":36,"merged":[[0,1,0,6],[0,7,0,8]]}
["Crea un elenco di entrate e spese in questo foglio di lavoro. Nelle celle di questa colonna sono disponibili istruzioni utili per l'uso di questo foglio di lavoro. Il titolo della cartella di lavoro si trova nella cella a destra e il titolo del foglio di lavoro nella cella H1.",{"$f":"Budget_Domestico_Bimensile_Titolo","v":"Budget domestico bimensile"},{"$nulls":5},"ENTRATE E SPESE"]
["L'etichetta Entrate si trova nella cella a destra e l'etichetta Spese nella cella F2.","ENTRATE",{"$nulls":3},"SPESE"]
["Immetti i dettagli nella tabella Entrate a partire dalla cella a destra e nella tabella Spese a partire dalla cella F3.","DATA","DESCRIZIONE","IMPORTO",null,"DATA","CATEGORIA","DESCRIZIONE","IMPORTO"]
[null,{"$f":"TODAY()","v":"2022-05-19"},"Bonus",{"v":500,"d":"€ 500.00"},null,{"$f":"TODAY()","v":"2022-05-19"},"Assistenza medica","Assicurazione",{"v":500,"d":"€ 500.00"}]
[null,{"$f":"TODAY()-14","v":"2022-05-05"},"Stipendio Davide",{"v":1300,"d":"€ 1,300.00"},null,{"$f":"TODAY()-7","v":"2022-05-12"},"Gestione della casa","Mutuo",{"v":1000,"d":"€ 1,000.00"}]
[null,{"$f":"TODAY()-14","v":"2022-05-05"},"Stipendio Lucia",{"v":1300,"d":"€ 1,300.00"},null,"2022-05-12","Gestione della casa","Elettricità",{"v":100,"d":"€ 100.00"}]
[null,{"$f":"TODAY()-28","v":"2022-04-21"},"Stipendio Davide",{"v":1500,"d":"€ 1,500.00"},null,"2022-05-12","Gestione della casa","Acqua/rete fognaria",{"v":50,"d":"€ 50.00"}]
[null,{"$f":"TODAY()-28","v":"2022-04-21"},"Stipendio Lucia",{"v":1600,"d":"€ 1,600.00"},null,"2022-05-12","Gestione della casa","Rifiuti",{"v":25,"d":"€ 25.00"}]
[null,{"$f":"TODAY()-42","v":"2022-04-07"},"Stipendio Davide",{"v":1300,"d":"€ 1,300.00"},null,"2022-05-12","Gestione della casa","Cellulare",{"v":100,"d":"€ 100.00"}]
[null,{"$f":"TODAY()-42","v":"2022-04-07"},"Stipendio Lucia",{"v":1300,"d":"€ 1,300.00"},null,"2022-05-12","Gestione della casa","Cellulare",{"v":30,"d":"€ 30.00"}]
[null,{"$f":"TODAY()-56","v":"2022-03-24"},"Stipendio Davide",{"v":1500,"d":"€ 1,500.00"},null,"2022-05-12","Gestione della casa","Mutuo",{"v":50,"d":"€ 50.00"}]
[null,{"$f":"TODAY()-56","v":"2022-03-24"},"Stipendio Lucia",{"v":1600,"d":"€ 1,600.00"},null,"2022-05-12","Gestione della casa","Cellulare",{"v":50,"d":"€ 50.00"}]
[null,{"$f":"TODAY()-70","v":"2022-03-10"},"Stipendio Davide",{"v":1300,"d":"€ 1,300.00"},null,{"$f":"TODAY()-7","v":"2022-05-12"},"Gestione della casa","Cellulare",{"v":25,"d":"€ 25.00"}]
[{"$nulls":5},{"$f":"TODAY()-8","v":"2022-05-11"},"Gestione della casa","Elettricità",{"v":100,"d":"€ 100.00"}]
[{"$nulls":5},{"$f":"TODAY()-9","v":"2022-05-10"},"Intrattenimento","Cinema",{"v":37,"d":"€ 37.00"}]
[{"$nulls":5},{"$f":"TODAY()-10","v":"2022-05-09"},"Cibo","Generi alimentari",{"v":350,"d":"€ 350.00"}]
[{"$nulls":5},{"$f":"TODAY()-11","v":"2022-05-08"},"Cibo","Cene fuori",{"v":75,"d":"€ 75.00"}]
[{"$nulls":5},{"$f":"TODAY()-12","v":"2022-05-07"},"Figli","Denaro per pranzo",{"v":150,"d":"€ 150.00"}]
[{"$nulls":5},{"$f":"TODAY()-13","v":"2022-05-06"},"Conti investimento","Risparmi",{"v":250,"d":"€ 250.00"}]
[{"$nulls":5},{"$f":"TODAY()-14","v":"2022-05-05"},"Conti investimento","Conto investimento",{"v":250,"d":"€ 250.00"}]
[{"$nulls":5},{"$f":"TODAY()-15","v":"2022-05-04"},"Spese personali","Centro benessere/fitness",{"v":100,"d":"€ 100.00"}]
[{"$nulls":5},{"$f":"TODAY()-16","v":"2022-05-03"},"Animali domestici","Cibo",{"v":50,"d":"€ 50.00"}]
[{"$nulls":5},{"$f":"TODAY()-20","v":"2022-04-29"},"Animali domestici","Cura della persona",{"v":50,"d":"€ 50.00"}]
[{"$nulls":5},{"$f":"TODAY()-20","v":"2022-04-29"},"Animali domestici","Altro",{"v":50,"d":"€ 50.00"}]
[{"$nulls":5},{"$f":"TODAY()-25","v":"2022-04-24"},"Trasporti","Pagamento auto 1 ",{"v":300,"d":"€ 300.00"}]
[{"$nulls":5},{"$f":"TODAY()-25","v":"2022-04-24"},"Trasporti","Pagamento Auto 2 ",{"v":350,"d":"€ 350.00"}]
[{"$nulls":5},{"$f":"TODAY()-25","v":"2022-04-24"},"Trasporti","Assicurazione auto",{"v":50,"d":"€ 50.00"}]
[{"$nulls":5},{"$f":"TODAY()-30","v":"2022-04-19"},"Trasporti","Carburante",{"v":50,"d":"€ 50.00"}]
[{"$nulls":5},{"$f":"TODAY()-31","v":"2022-04-18"},"Trasporti","Carburante",{"v":25,"d":"€ 25.00"}]
[{"$nulls":5},{"$f":"TODAY()-42","v":"2022-04-07"},"Trasporti","Pagamento Auto 2 ",{"v":150,"d":"€ 150.00"}]
[{"$nulls":5},{"$f":"TODAY()-45","v":"2022-04-04"},"Gestione della casa","Mutuo",{"v":5000,"d":"€ 5,000.00"}]
[{"$nulls":5},{"$f":"TODAY()-50","v":"2022-03-30"},"Gestione della casa","Elettricità",{"v":200,"d":"€ 200.00"}]
[{"$nulls":5},{"$f":"TODAY()-65","v":"2022-03-15"},"Gestione della casa","Cellulare",{"v":100,"d":"€ 100.00"}]
[{"$nulls":5},{"$f":"TODAY()-70","v":"2022-03-10"},"Gestione della casa","Rifiuti",{"v":50,"d":"€ 50.00"}]
[{"$nulls":5},{"$f":"TODAY()-75","v":"2022-03-05"},"Gestione della casa","Mutuo",{"v":1000,"d":"€ 1,000.00"}]
[{"$nulls":5},{"$f":"TODAY()-78","v":"2022-03-02"},"Intrattenimento","Cinema",{"v":75,"d":"€ 75.00"}]

{"sheet":"Report budget","index":3,"n_rows":26,"n_cols":6,"rows_kept":26,"merged":[[0,1,0,4],[1,1,1,3],[4,3,4,5]]}
["Crea un report budget in questo foglio di lavoro. Nelle celle di questa colonna sono disponibili istruzioni utili per l'uso di questo foglio di lavoro. Il titolo della cartella di lavoro si trova nella cella a destra e il titolo del foglio di lavoro nella cella F1.",{"$f":"Budget_Domestico_Bimensile_Titolo","v":"Budget domestico bimensile"},{"$nulls":3},"REPORT BUDGET"]
["Seleziona Anni, Trimestri, Mesi o Giorni e usa il dispositivo di scorrimento nella cella a destra per visualizzare la tabella pivot Spese per il periodo selezionato. Il filtro dei dati Categoria per filtrare i dati della tabella pivot si trova nella cella E2 e il filtro dei dati Descrizione nella cella F2.","La sequenza temporale per filtrare è in questa cella.",null,null,"Questa cella contiene il filtro dei dati per filtrare i dati della tabella pivot in base alla categoria.","Il filtro dei dati per filtrare i dati di una tabella pivot in base alla descrizione si trova in questa cella."]
["Il suggerimento si trova nella cella a destra.","Premi MAIUSC+F10 nella tabella pivot Spese e seleziona Aggiorna per aggiornare i dati nel foglio oppure seleziona Aggiorna nella scheda Analizza."]
["L'etichetta Spese si trova nella cella a destra.","SPESE"]
["La tabella pivot che mostra le spese inizia nella cella a destra. L'etichetta Totali categoria si trova nella cella D4.","Etichette di riga","Somma di IMPORTO","Totali categoria"]
["Il grafico a torta che confronta il totale di ogni categoria si trova nella cella D6.","Pagamento auto 1 ",{"v":300,"d":"€ 300.00"}]
[null,"Pagamento Auto 2 ",{"v":500,"d":"€ 500.00"}]
[null,"Acqua/rete fognaria",{"v":50,"d":"€ 50.00"}]
[null,"Altro",{"v":50,"d":"€ 50.00"}]
[null,"Assicurazione",{"v":500,"d":"€ 500.00"}]
[null,"Assicurazione auto",{"v":50,"d":"€ 50.00"}]
[null,"Carburante",{"v":75,"d":"€ 75.00"}]
[null,"Cellulare",{"v":305,"d":"€ 305.00"}]
[null,"Cene fuori",{"v":75,"d":"€ 75.00"}]
[null,"Centro benessere/fitness",{"v":100,"d":"€ 100.00"}]
[null,"Cibo",{"v":50,"d":"€ 50.00"}]
[null,"Cinema",{"v":112,"d":"€ 112.00"}]
[null,"Conto investimento",{"v":250,"d":"€ 250.00"}]
[null,"Cura della persona",{"v":50,"d":"€ 50.00"}]
[null,"Denaro per pranzo",{"v":150,"d":"€ 150.00"}]
[null,"Elettricità",{"v":400,"d":"€ 400.00"}]
[null,"Generi alimentari",{"v":350,"d":"€ 350.00"}]
[null,"Mutuo",{"v":7050,"d":"€ 7,050.00"}]
[null,"Rifiuti",{"v":75,"d":"€ 75.00"}]
[null,"Risparmi",{"v":250,"d":"€ 250.00"}]
[null,"Totale complessivo",{"v":10742,"d":"€ 10,742.00"}]

{"sheet":"Elenchi dati","index":4,"n_rows":8,"n_cols":13,"rows_kept":8,"merged":[[0,1,0,11]]}
["Immetti i dati della categoria in questo foglio di lavoro per popolare gli elenchi a discesa nella tabella Spese nel foglio di lavoro Spese e entrate. Modifica i nomi delle categorie o le descrizioni sotto ogni categoria per aggiornare gli elenchi. Nelle celle di questa colonna sono disponibili istruzioni utili per l'uso di questo foglio di lavoro. Il titolo della cartella di lavoro si trova nella cella a destra e il titolo del foglio di lavoro nella cella M1.",{"$f":"Budget_Domestico_Bimensile_Titolo","v":"Budget domestico bimensile"},{"$nulls":10},"ELENCHI DATI"]
["Il suggerimento si trova nella cella a destra.","CONFIGURAZIONE         I dati della categoria seguenti popolano gli elenchi a discesa nella tabella Spese del foglio Spese e entrate. Modifica i nomi delle categoria o le descrizioni sotto ogni categoria per aggiornare gli elenchi."]
["Immetti o modifica i nomi delle categorie o le descrizioni sotto ogni categoria nella tabella a partire dalla cella a destra.","Gestione della casa","Intrattenimento","Cibo","Regali/donazioni","Figli","Conti investimento","Assistenza medica","Altro","Spese personali","Animali domestici","Tasse/spese legali","Trasporti"]
[null,"Mutuo","Cinema","Generi alimentari","Beneficenza 1","Abbigliamento","FPI","Medico/clinica","Altro","Abbigliamento","Cibo","Nazionali","Pagamento auto 1 "]
[null,"Elettricità","Video/film","Cene fuori","Beneficenza 2","Giocattoli/giochi","Risparmi","Assicurazione","Quote organizzazione","Parrucchiere/manicure","Materiali","Regionali","Pagamento Auto 2 "]
[null,"Acqua/rete fognaria","Musica",null,"Beneficenza 3","Denaro per pranzo","Assegni",null,null,"Lavanderia","Assistenza medica","Locali","Assicurazione auto"]
[null,"Rifiuti","Concerti/teatro",null,"Regalo","Quote/tasse","Pensione",null,null,"Centro benessere/fitness","Cura della persona","Altro","Licenze/registrazione"]
[null,"Cellulare","Eventi sportivi",null,null,"Materiale scolastico","Conto investimento",null,null,"Acquisti","Altro","Avvocato","Carburante"]

{"sheet":"Tabella pivot Categoria","index":5,"n_rows":13,"n_cols":13,"rows_kept":13,"hidden":true}
[null,"Budget domestico bimensile",{"$nulls":10},"CATEGORIA PIVOT"]
[null,"Questa tabella pivot è l'origine dati per il grafico pivot Totali categoria nel report budget. "]
[null,"Etichette di riga","Somma di IMPORTO"]
[null,"Figli",{"v":150,"d":"€ 150"}]
[null,"Intrattenimento",{"v":112,"d":"€ 112"}]
[null,"Cibo",{"v":425,"d":"€ 425"}]
[null,"Gestione della casa",{"v":7880,"d":"€ 7,880"}]
[null,"Assistenza medica",{"v":500,"d":"€ 500"}]
[null,"Conti investimento",{"v":500,"d":"€ 500"}]
[null,"Spese personali",{"v":100,"d":"€ 100"}]
[null,"Animali domestici",{"v":150,"d":"€ 150"}]
[null,"Trasporti",{"v":925,"d":"€ 925"}]
[null,"Totale complessivo",{"v":10742,"d":"€ 10,742"}]